{"text_format":"1","workbook":"xlsx","n_sheets":3,"sheets":["الرئيسي","يناير","فبراير"],"not_rendered":{"charts":0,"images":1,"macros":1,"external_links":1,"defined_names":1,"comments":0,"pivot_tables":0},"unopened":[],"bounds":{"document_bytes":16777216,"sheet_cells":100000,"rows_first":2000,"rows_last":500,"rows_between":2000,"halvings":0,"cell_chars":16384,"cell_head_chars":4096},"cells_cut":0,"cells_raw":0,"read":"whole","date_system":"1900"}

{"sheet":"الرئيسي","index":0,"n_rows":3,"n_cols":5,"rows_kept":3,"cut":false,"hidden":false,"merged":[]}
["يناير",2020,null,"يناير",2020]
[null,null,null,"فبراير",2021]
[null,null,null,"مارس",2022]

{"sheet":"يناير","index":1,"n_rows":72,"n_cols":39,"rows_kept":72,"cut":false,"hidden":false,"merged":[[0,33,0,38],[3,37,4,37],[3,38,4,38],[2,10,2,13],[3,0,4,0],[3,1,4,1],[3,33,4,33],[3,34,4,34],[3,35,4,35],[3,36,4,36],[2,19,2,20],[2,21,2,23],[2,24,2,25],[2,26,2,27],[2,28,2,30],[2,31,2,32],[1,33,2,38],[1,26,1,28],[1,29,1,30],[1,31,1,32],[2,0,2,1],[2,2,2,4],[2,6,2,8],[2,14,2,15],[2,16,2,18],[1,2,1,8],[1,9,1,18],[1,19,1,20],[1,21,1,23],[1,24,1,25],[37,2,37,8],[37,9,37,18],[37,19,37,20],[37,21,37,23],[37,24,37,25],[37,26,37,28],[37,29,37,30],[37,31,37,32],[37,33,38,38],[38,0,38,1],[38,2,38,4],[38,6,38,8],[38,10,38,13],[38,14,38,15],[38,16,38,18],[38,19,38,20],[38,21,38,23],[38,24,38,25],[38,26,38,27],[38,28,38,30],[38,31,38,32],[39,36,40,36],[39,37,40,37],[39,38,40,38],[39,0,40,0],[39,1,40,1],[39,33,40,33],[39,34,40,34],[39,35,40,35]]}
[null,null,null,null,null,null,null,null,null,null,null,null,null,null,null,null,null,null,null,null,null,null,null,null,null,null,null,null,null,null,null,null,null,"المطلوب\nقمت بعمل تحديد للصفوف التي تحتوي على الايام الخميس والجمعة والسبت \nوأريد أن أضيف شرط وهو في حال كانت الخلية (v2) تساوي (4) ينفذ الشرط على الثلاثة الايام \nوفي حال كانت الخلية(v2) تساوي (4) ينفذ الشرط على الأيام الجمعة والسبت فقط"]
[null,null,"اسم المحفظ",null,null,null,null,null,null,null,null,null,null,null,null,null,null,null,null,"أيام الدوام",null,4,null,null,"العام",null,2020,null,null,"الشهر",null,"1900-01-01"]
[null,null,"الرموز التعريفية",null,null,"ع","عطلة",null,null,"ش","أسباب شخصية",null,null,null,"م",null,"مرضي",null,null,1,null,"حاضر",null,null,0,null,"غائب",null,"عدد أيام الدراسة",null,null,6]
["م","اسم الطالب",{"$f":"DATE(AA2,AF2,1)","v":"2020-01-01"},{"$f":"DATE(AA2,AF2,2)","v":"2020-01-02"},{"$f":"DATE(AA2,AF2,3)","v":"2020-01-03"},{"$f":"DATE(AA2,AF2,4)","v":"2020-01-04"},{"$f":"DATE(AA2,AF2,5)","v":"2020-01-05"},{"$f":"DATE(AA2,AF2,6)","v":"2020-01-06"},{"$f":"DATE(AA2,AF2,7)","v":"2020-01-07"},{"$f":"DATE(AA2,AF2,8)","v":"2020-01-08"},{"$f":"DATE(AA2,AF2,9)","v":"2020-01-09"},{"$f":"DATE(AA2,AF2,10)","v":"2020-01-10"},{"$f":"DATE(AA2,AF2,11)","v":"2020-01-11"},{"$f":"DATE(AA2,AF2,12)","v":"2020-01-12"},{"$f":"DATE(AA2,AF2,13)","v":"2020-01-13"},{"$f":"DATE(AA2,AF2,14)","v":"2020-01-14"},{"$f":"DATE(AA2,AF2,15)","v":"2020-01-15"},{"$f":"DATE(AA2,AF2,16)","v":"2020-01-16"},{"$f":"DATE(AA2,AF2,17)","v":"2020-01-17"},{"$f":"DATE(AA2,AF2,18)","v":"2020-01-18"},{"$f":"DATE(AA2,AF2,19)","v":"2020-01-19"},{"$f":"DATE(AA2,AF2,20)","v":"2020-01-20"},{"$f":"DATE(AA2,AF2,21)","v":"2020-01-21"},{"$f":"DATE(AA2,AF2,22)","v":"2020-01-22"},{"$f":"DATE(AA2,AF2,23)","v":"2020-01-23"},{"$f":"DATE(AA2,AF2,24)","v":"2020-01-24"},{"$f":"DATE(AA2,AF2,25)","v":"2020-01-25"},{"$f":"DATE(AA2,AF2,26)","v":"2020-01-26"},{"$f":"DATE(AA2,AF2,27)","v":"2020-01-27"},{"$f":"DATE(AA2,AF2,28)","v":"2020-01-28"},{"$f":"DATE(AA2,AF2,29)","v":"2020-01-29"},{"$f":"DATE(AA2,AF2,30)","v":"2020-01-30"},{"$f":"DATE(AA2,AF2,31)","v":"2020-01-31"},"عدد أيام الحضور","عدد أيام الغياب","حالة الطالب","المكرمون","ملاحظات المحفظ","ملاحظات الإدارة"]
[null,null,{"$f":"DATE(AA2,AF2,1)","v":"2020-01-01"},{"$f":"DATE(AA2,AF2,2)","v":"2020-01-02"},{"$f":"DATE(AA2,AF2,3)","v":"2020-01-03"},{"$f":"DATE(AA2,AF2,4)","v":"2020-01-04"},{"$f":"DATE(AA2,AF2,5)","v":"2020-01-05"},{"$f":"DATE(AA2,AF2,6)","v":"2020-01-06"},{"$f":"DATE(AA2,AF2,7)","v":"2020-01-07"},{"$f":"DATE(AA2,AF2,8)","v":"2020-01-08"},{"$f":"DATE(AA2,AF2,9)","v":"2020-01-09"},{"$f":"DATE(AA2,AF2,10)","v":"2020-01-10"},{"$f":"DATE(AA2,AF2,11)","v":"2020-01-11"},{"$f":"DATE(AA2,AF2,12)","v":"2020-01-12"},{"$f":"DATE(AA2,AF2,13)","v":"2020-01-13"},{"$f":"DATE(AA2,AF2,14)","v":"2020-01-14"},{"$f":"DATE(AA2,AF2,15)","v":"2020-01-15"},{"$f":"DATE(AA2,AF2,16)","v":"2020-01-16"},{"$f":"DATE(AA2,AF2,17)","v":"2020-01-17"},{"$f":"DATE(AA2,AF2,18)","v":"2020-01-18"},{"$f":"DATE(AA2,AF2,19)","v":"2020-01-19"},{"$f":"DATE(AA2,AF2,20)","v":"2020-01-20"},{"$f":"DATE(AA2,AF2,21)","v":"2020-01-21"},{"$f":"DATE(AA2,AF2,22)","v":"2020-01-22"},{"$f":"DATE(AA2,AF2,23)","v":"2020-01-23"},{"$f":"DATE(AA2,AF2,24)","v":"2020-01-24"},{"$f":"DATE(AA2,AF2,25)","v":"2020-01-25"},{"$f":"DATE(AA2,AF2,26)","v":"2020-01-26"},{"$f":"DATE(AA2,AF2,27)","v":"2020-01-27"},{"$f":"DATE(AA2,AF2,28)","v":"2020-01-28"},{"$f":"DATE(AA2,AF2,29)","v":"2020-01-29"},{"$f":"DATE(AA2,AF2,30)","v":"2020-01-30"},{"$f":"DATE(AA2,AF2,31)","v":"2020-01-31"}]
[1,null,null,null,null,null,null,null,null,null,null,null,null,null,null,null,null,null,null,null,null,null,null,null,null,null,null,null,null,null,null,null,null,{"$f":"IFERROR(COUNTIF(C6:AG6,1),\"\")","v":0},{"$f":"COUNTIF(C6:AG6,0)","v":0},{"$f":"IF($AI6>=9,\"فصل\",IF($AI6>=6,\"إنذار ثاني\",IF($AI6>=3,\"إنذار أول\",\"\")))","v":""},{"$f":"IF(AH6=$AF$3,\"يكــــــــرم\",\"\")","v":""}]
[2,null,null,null,null,null,null,null,null,null,null,null,null,null,null,null,null,null,null,null,null,null,null,null,null,null,null,null,null,null,null,null,null,{"$f":"COUNTIF(C7:AG7,1)","v":0},{"$f":"COUNTIF(C7:AG7,0)","v":0},{"$f":"IF($AI7>=9,\"فصل\",IF($AI7>=6,\"إنذار ثاني\",IF($AI7>=3,\"إنذار أول\",\"\")))","v":""},{"$f":"IF(AH7=$AF$3,\"يكــــــــرم\",\"\")","v":""},null,{"$f":"IF(WEEKDAY(C$4)=7,WEEKDAY(C$4)=6)","v":false}]
[3,null,null,null,null,null,null,null,null,null,null,null,null,null,null,null,null,null,null,null,null,null,null,null,null,null,null,null,null,null,null,null,null,0,0,"","",null,{"$f":"IF(WEEKDAY(C$4)=7,WEEKDAY(C$4)=6,WEEKDAY(C$4)=5)","v":false}]
[4,null,null,null,null,null,null,null,null,null,null,null,null,null,null,null,null,null,null,null,null,null,null,null,null,null,null,null,null,null,null,null,null,0,0,"","",null,{"$f":"NOT(OR(WEEKDAY(C$4)=7,WEEKDAY(C$4)=6,WEEKDAY(C$4)=5))","v":true}]
[5,null,null,null,null,null,null,null,null,null,null,null,null,null,null,null,null,null,null,null,null,null,null,null,null,null,null,null,null,null,null,null,null,0,0,"",""]
[6,null,null,null,null,null,null,null,null,null,null,null,null,null,null,null,null,null,null,null,null,null,null,null,null,null,null,null,null,null,null,null,null,0,0,"",""]
[7,null,null,null,null,null,null,null,null,null,null,null,null,null,null,null,null,null,null,null,null,null,null,null,null,null,null,null,null,null,null,null,null,0,0,"",""]
[8,null,null,null,null,null,null,null,null,null,null,null,null,null,null,null,null,null,null,null,null,null,null,null,null,null,null,null,null,null,null,null,null,0,0,"",""]
[9,null,null,null,null,null,null,null,null,null,null,null,null,null,null,null,null,null,null,null,null,null,null,null,null,null,null,null,null,null,null,null,null,0,0,"",""]
[10,null,null,null,null,null,null,null,null,null,null,null,null,null,null,null,null,null,null,null,null,null,null,null,null,null,null,null,null,null,null,null,null,0,0,"",""]
[11,null,null,null,null,null,null,null,null,null,null,null,null,null,null,null,null,null,null,null,null,null,null,null,null,null,null,null,null,null,null,null,null,0,0,"",""]
[12,null,null,null,null,null,null,null,null,null,null,null,null,null,null,null,null,null,null,null,null,null,null,null,null,null,null,null,null,null,null,null,null,0,0,"",""]
[13,null,null,null,null,null,null,null,null,null,null,null,null,null,null,null,null,null,null,null,null,null,null,null,null,null,null,null,null,null,null,null,null,0,0,"",""]
[14,null,null,null,null,null,null,null,null,null,null,null,null,null,null,null,null,null,null,null,null,null,null,null,null,null,null,null,null,null,null,null,null,0,0,"",""]
[15,null,null,null,null,null,null,null,null,null,null,null,null,null,null,null,null,null,null,null,null,null,null,null,null,null,null,null,null,null,null,null,null,0,0,"",""]
[16,null,null,null,null,null,null,null,null,null,null,null,null,null,null,null,null,null,null,null,null,null,null,null,null,null,null,null,null,null,null,null,null,0,0,"",""]
[17,null,null,null,null,null,null,null,null,null,null,null,null,null,null,null,null,null,null,null,null,null,null,null,null,null,null,null,null,null,null,null,null,0,0,"",""]
[18,null,null,null,null,null,null,null,null,null,null,null,null,null,null,null,null,null,null,null,null,null,null,null,null,null,null,null,null,null,null,null,null,0,0,"",""]
[19,null,null,null,null,null,null,null,null,null,null,null,null,null,null,null,null,null,null,null,null,null,null,null,null,null,null,null,null,null,null,null,null,0,0,"",""]
[20,null,null,null,null,null,null,null,null,null,null,null,null,null,null,null,null,null,null,null,null,null,null,null,null,null,null,null,null,null,null,null,null,0,0,"",""]
[21,null,null,null,null,null,null,null,null,null,null,null,null,null,null,null,null,null,null,null,null,null,null,null,null,null,null,null,null,null,null,null,null,0,0,"",""]
[22,null,null,null,null,null,null,null,null,null,null,null,null,null,null,null,null,null,null,null,null,null,null,null,null,null,null,null,null,null,null,null,null,0,0,"",""]
[23,null,null,null,null,null,null,null,null,null,null,null,null,null,null,null,null,null,null,null,null,null,null,null,null,null,null,null,null,null,null,null,null,0,0,"",""]
[24,null,null,null,null,null,null,null,null,null,null,null,null,null,null,null,null,null,null,null,null,null,null,null,null,null,null,null,null,null,null,null,null,0,0,"",""]
[25,null,null,null,null,null,null,null,null,null,null,null,null,null,null,null,null,null,null,null,null,null,null,null,null,null,null,null,null,null,null,null,null,0,0,"",""]
[26,null,null,null,null,null,null,null,null,null,null,null,null,null,null,null,null,null,null,null,null,null,null,null,null,null,null,null,null,null,null,null,null,0,0,"",""]
[27,null,null,null,null,null,null,null,null,null,null,null,null,null,null,null,null,null,null,null,null,null,null,null,null,null,null,null,null,null,null,null,null,0,0,"",""]
[28,null,null,null,null,null,null,null,null,null,null,null,null,null,null,null,null,null,null,null,null,null,null,null,null,null,null,null,null,null,null,null,null,0,0,"",""]
[29,null,null,null,null,null,null,null,null,null,null,null,null,null,null,null,null,null,null,null,null,null,null,null,null,null,null,null,null,null,null,null,null,0,0,"",""]
[30,null,null,null,null,null,null,null,null,null,null,null,null,null,null,null,null,null,null,null,null,null,null,null,null,null,null,null,null,null,null,null,null,0,0,"",""]
[null,"الإجمالي العام",{"$f":"COUNTIF(C6:C35,1)","v":0},{"$f":"COUNTIF(D6:D35,1)","v":0},0,0,0,0,0,0,0,0,0,0,0,0,0,0,0,0,0,0,0,0,0,0,0,0,0,0,0,0,0]
[]
[null,null,"اسم المحفظ",null,null,null,null,null,null,null,null,null,null,null,null,null,null,null,null,"أيام الدوام",null,4,null,null,"العام",null,2021,null,null,"الشهر",null,"1900-01-01"]
[null,null,"الرموز التعريفية",null,null,"ع","عطلة",null,null,"ش","أسباب شخصية",null,null,null,"م",null,"مرضي",null,null,1,null,"حاضر",null,null,0,null,"غائب",null,"عدد أيام الدراسة",null,null,6]
["م","اسم الطالب",{"$f":"DATE(AA38,AF38,1)","v":"2021-01-01"},{"$f":"DATE(AA38,AF38,2)","v":"2021-01-02"},{"$f":"DATE(AA38,AF38,3)","v":"2021-01-03"},{"$f":"DATE(AA38,AF38,4)","v":"2021-01-04"},{"$f":"DATE(AA38,AF38,5)","v":"2021-01-05"},{"$f":"DATE(AA38,AF38,6)","v":"2021-01-06"},{"$f":"DATE(AA38,AF38,7)","v":"2021-01-07"},{"$f":"DATE(AA38,AF38,8)","v":"2021-01-08"},{"$f":"DATE(AA38,AF38,9)","v":"2021-01-09"},{"$f":"DATE(AA38,AF38,10)","v":"2021-01-10"},{"$f":"DATE(AA38,AF38,11)","v":"2021-01-11"},{"$f":"DATE(AA38,AF38,12)","v":"2021-01-12"},{"$f":"DATE(AA38,AF38,13)","v":"2021-01-13"},{"$f":"DATE(AA38,AF38,14)","v":"2021-01-14"},{"$f":"DATE(AA38,AF38,15)","v":"2021-01-15"},{"$f":"DATE(AA38,AF38,16)","v":"2021-01-16"},{"$f":"DATE(AA38,AF38,17)","v":"2021-01-17"},{"$f":"DATE(AA38,AF38,18)","v":"2021-01-18"},{"$f":"DATE(AA38,AF38,19)","v":"2021-01-19"},{"$f":"DATE(AA38,AF38,20)","v":"2021-01-20"},{"$f":"DATE(AA38,AF38,21)","v":"2021-01-21"},{"$f":"DATE(AA38,AF38,22)","v":"2021-01-22"},{"$f":"DATE(AA38,AF38,23)","v":"2021-01-23"},{"$f":"DATE(AA38,AF38,24)","v":"2021-01-24"},{"$f":"DATE(AA38,AF38,25)","v":"2021-01-25"},{"$f":"DATE(AA38,AF38,26)","v":"2021-01-26"},{"$f":"DATE(AA38,AF38,27)","v":"2021-01-27"},{"$f":"DATE(AA38,AF38,28)","v":"2021-01-28"},{"$f":"DATE(AA38,AF38,29)","v":"2021-01-29"},{"$f":"DATE(AA38,AF38,30)","v":"2021-01-30"},{"$f":"DATE(AA38,AF38,31)","v":"2021-01-31"},"عدد أيام الحضور","عدد أيام الغياب","حالة الطالب","المكرمون","ملاحظات المحفظ","ملاحظات الإدارة"]
[null,null,{"$f":"DATE(AA38,AF38,1)","v":"2021-01-01"},{"$f":"DATE(AA38,AF38,2)","v":"2021-01-02"},{"$f":"DATE(AA38,AF38,3)","v":"2021-01-03"},{"$f":"DATE(AA38,AF38,4)","v":"2021-01-04"},{"$f":"DATE(AA38,AF38,5)","v":"2021-01-05"},{"$f":"DATE(AA38,AF38,6)","v":"2021-01-06"},{"$f":"DATE(AA38,AF38,7)","v":"2021-01-07"},{"$f":"DATE(AA38,AF38,8)","v":"2021-01-08"},{"$f":"DATE(AA38,AF38,9)","v":"2021-01-09"},{"$f":"DATE(AA38,AF38,10)","v":"2021-01-10"},{"$f":"DATE(AA38,AF38,11)","v":"2021-01-11"},{"$f":"DATE(AA38,AF38,12)","v":"2021-01-12"},{"$f":"DATE(AA38,AF38,13)","v":"2021-01-13"},{"$f":"DATE(AA38,AF38,14)","v":"2021-01-14"},{"$f":"DATE(AA38,AF38,15)","v":"2021-01-15"},{"$f":"DATE(AA38,AF38,16)","v":"2021-01-16"},{"$f":"DATE(AA38,AF38,17)","v":"2021-01-17"},{"$f":"DATE(AA38,AF38,18)","v":"2021-01-18"},{"$f":"DATE(AA38,AF38,19)","v":"2021-01-19"},{"$f":"DATE(AA38,AF38,20)","v":"2021-01-20"},{"$f":"DATE(AA38,AF38,21)","v":"2021-01-21"},{"$f":"DATE(AA38,AF38,22)","v":"2021-01-22"},{"$f":"DATE(AA38,AF38,23)","v":"2021-01-23"},{"$f":"DATE(AA38,AF38,24)","v":"2021-01-24"},{"$f":"DATE(AA38,AF38,25)","v":"2021-01-25"},{"$f":"DATE(AA38,AF38,26)","v":"2021-01-26"},{"$f":"DATE(AA38,AF38,27)","v":"2021-01-27"},{"$f":"DATE(AA38,AF38,28)","v":"2021-01-28"},{"$f":"DATE(AA38,AF38,29)","v":"2021-01-29"},{"$f":"DATE(AA38,AF38,30)","v":"2021-01-30"},{"$f":"DATE(AA38,AF38,31)","v":"2021-01-31"}]
[1,null,null,null,null,null,null,null,null,null,null,null,null,null,null,null,null,null,null,null,null,null,null,null,null,null,null,null,null,null,null,null,null,{"$f":"IFERROR(COUNTIF(C42:AG42,1),\"\")","v":0},{"$f":"COUNTIF(C42:AG42,0)","v":0},{"$f":"IF($AI42>=9,\"فصل\",IF($AI42>=6,\"إنذار ثاني\",IF($AI42>=3,\"إنذار أول\",\"\")))","v":""},{"$f":"IF(AH42=$AF$3,\"يكــــــــرم\",\"\")","v":""}]
[2,null,null,null,null,null,null,null,null,null,null,null,null,null,null,null,null,null,null,null,null,null,null,null,null,null,null,null,null,null,null,null,null,{"$f":"COUNTIF(C43:AG43,1)","v":0},{"$f":"COUNTIF(C43:AG43,0)","v":0},{"$f":"IF($AI43>=9,\"فصل\",IF($AI43>=6,\"إنذار ثاني\",IF($AI43>=3,\"إنذار أول\",\"\")))","v":""},{"$f":"IF(AH43=$AF$3,\"يكــــــــرم\",\"\")","v":""}]
[3,null,null,null,null,null,null,null,null,null,null,null,null,null,null,null,null,null,null,null,null,null,null,null,null,null,null,null,null,null,null,null,null,0,0,"","",null,{"$f":"OR(WEEKDAY(C$4)=7,WEEKDAY(C$4)=6,WEEKDAY(C$4)=5)","v":false}]
[4,null,null,null,null,null,null,null,null,null,null,null,null,null,null,null,null,null,null,null,null,null,null,null,null,null,null,null,null,null,null,null,null,0,0,"","",null,{"$f":"NOT(OR(WEEKDAY(C$4)=7,WEEKDAY(C$4)=6,WEEKDAY(C$4)=5))","v":true}]
[5,null,null,null,null,null,null,null,null,null,null,null,null,null,null,null,null,null,null,null,null,null,null,null,null,null,null,null,null,null,null,null,null,0,0,"",""]
[6,null,null,null,null,null,null,null,null,null,null,null,null,null,null,null,null,null,null,null,null,null,null,null,null,null,null,null,null,null,null,null,null,0,0,"",""]
[7,null,null,null,null,null,null,null,null,null,null,null,null,null,null,null,null,null,null,null,null,null,null,null,null,null,null,null,null,null,null,null,null,0,0,"",""]
[8,null,null,null,null,null,null,null,null,null,null,null,null,null,null,null,null,null,null,null,null,null,null,null,null,null,null,null,null,null,null,null,null,0,0,"",""]
[9,null,null,null,null,null,null,null,null,null,null,null,null,null,null,null,null,null,null,null,null,null,null,null,null,null,null,null,null,null,null,null,null,0,0,"",""]
[10,null,null,null,null,null,null,null,null,null,null,null,null,null,null,null,null,null,null,null,null,null,null,null,null,null,null,null,null,null,null,null,null,0,0,"",""]
[11,null,null,null,null,null,null,null,null,null,null,null,null,null,null,null,null,null,null,null,null,null,null,null,null,null,null,null,null,null,null,null,null,0,0,"",""]
[12,null,null,null,null,null,null,null,null,null,null,null,null,null,null,null,null,null,null,null,null,null,null,null,null,null,null,null,null,null,null,null,null,0,0,"",""]
[13,null,null,null,null,null,null,null,null,null,null,null,null,null,null,null,null,null,null,null,null,null,null,null,null,null,null,null,null,null,null,null,null,0,0,"",""]
[14,null,null,null,null,null,null,null,null,null,null,null,null,null,null,null,null,null,null,null,null,null,null,null,null,null,null,null,null,null,null,null,null,0,0,"",""]
[15,null,null,null,null,null,null,null,null,null,null,null,null,null,null,null,null,null,null,null,null,null,null,null,null,null,null,null,null,null,null,null,null,0,0,"",""]
[16,null,null,null,null,null,null,null,null,null,null,null,null,null,null,null,null,null,null,null,null,null,null,null,null,null,null,null,null,null,null,null,null,0,0,"",""]
[17,null,null,null,null,null,null,null,null,null,null,null,null,null,null,null,null,null,null,null,null,null,null,null,null,null,null,null,null,null,null,null,null,0,0,"",""]
[18,null,null,null,null,null,null,null,null,null,null,null,null,null,null,null,null,null,null,null,null,null,null,null,null,null,null,null,null,null,null,null,null,0,0,"",""]
[19,null,null,null,null,null,null,null,null,null,null,null,null,null,null,null,null,null,null,null,null,null,null,null,null,null,null,null,null,null,null,null,null,0,0,"",""]
[20,null,null,null,null,null,null,null,null,null,null,null,null,null,null,null,null,null,null,null,null,null,null,null,null,null,null,null,null,null,null,null,null,0,0,"",""]
[21,null,null,null,null,null,null,null,null,null,null,null,null,null,null,null,null,null,null,null,null,null,null,null,null,null,null,null,null,null,null,null,null,0,0,"",""]
[22,null,null,null,null,null,null,null,null,null,null,null,null,null,null,null,null,null,null,null,null,null,null,null,null,null,null,null,null,null,null,null,null,0,0,"",""]
[23,null,null,null,null,null,null,null,null,null,null,null,null,null,null,null,null,null,null,null,null,null,null,null,null,null,null,null,null,null,null,null,null,0,0,"",""]
[24,null,null,null,null,null,null,null,null,null,null,null,null,null,null,null,null,null,null,null,null,null,null,null,null,null,null,null,null,null,null,null,null,0,0,"",""]
[25,null,null,null,null,null,null,null,null,null,null,null,null,null,null,null,null,null,null,null,null,null,null,null,null,null,null,null,null,null,null,null,null,0,0,"",""]
[26,null,null,null,null,null,null,null,null,null,null,null,null,null,null,null,null,null,null,null,null,null,null,null,null,null,null,null,null,null,null,null,null,0,0,"",""]
[27,null,null,null,null,null,null,null,null,null,null,null,null,null,null,null,null,null,null,null,null,null,null,null,null,null,null,null,null,null,null,null,null,0,0,"",""]
[28,null,null,null,null,null,null,null,null,null,null,null,null,null,null,null,null,null,null,null,null,null,null,null,null,null,null,null,null,null,null,null,null,0,0,"",""]
[29,null,null,null,null,null,null,null,null,null,null,null,null,null,null,null,null,null,null,null,null,null,null,null,null,null,null,null,null,null,null,null,null,0,0,"",""]
[30,null,null,null,null,null,null,null,null,null,null,null,null,null,null,null,null,null,null,null,null,null,null,null,null,null,null,null,null,null,null,null,null,0,0,"",""]
[null,"الإجمالي العام",{"$f":"COUNTIF(C42:C71,1)","v":0},{"$f":"COUNTIF(D42:D71,1)","v":0},{"$f":"COUNTIF(E42:E71,1)","v":0},{"$f":"COUNTIF(F42:F71,1)","v":0},{"$f":"COUNTIF(G42:G71,1)","v":0},{"$f":"COUNTIF(H42:H71,1)","v":0},{"$f":"COUNTIF(I42:I71,1)","v":0},{"$f":"COUNTIF(J42:J71,1)","v":0},{"$f":"COUNTIF(K42:K71,1)","v":0},{"$f":"COUNTIF(L42:L71,1)","v":0},{"$f":"COUNTIF(M42:M71,1)","v":0},{"$f":"COUNTIF(N42:N71,1)","v":0},{"$f":"COUNTIF(O42:O71,1)","v":0},{"$f":"COUNTIF(P42:P71,1)","v":0},{"$f":"COUNTIF(Q42:Q71,1)","v":0},{"$f":"COUNTIF(R42:R71,1)","v":0},{"$f":"COUNTIF(S42:S71,1)","v":0},{"$f":"COUNTIF(T42:T71,1)","v":0},{"$f":"COUNTIF(U42:U71,1)","v":0},{"$f":"COUNTIF(V42:V71,1)","v":0},{"$f":"COUNTIF(W42:W71,1)","v":0},{"$f":"COUNTIF(X42:X71,1)","v":0},{"$f":"COUNTIF(Y42:Y71,1)","v":0},{"$f":"COUNTIF(Z42:Z71,1)","v":0},{"$f":"COUNTIF(AA42:AA71,1)","v":0},{"$f":"COUNTIF(AB42:AB71,1)","v":0},{"$f":"COUNTIF(AC42:AC71,1)","v":0},{"$f":"COUNTIF(AD42:AD71,1)","v":0},{"$f":"COUNTIF(AE42:AE71,1)","v":0},{"$f":"COUNTIF(AF42:AF71,1)","v":0},{"$f":"COUNTIF(AG42:AG71,1)","v":0}]

{"sheet":"فبراير","index":2,"n_rows":0,"n_cols":0,"rows_kept":0,"cut":false,"hidden":false,"merged":[]}